Cogmind - Beta 15 @@@ ROGUE MODE // 2025.05.24 @ 22:21:30 Player: Figgis Result: Destroyed by KQ-YQJ(z) with Zionite Laser-S Performance ------------- Evolutions (3) 1500 Regions Visited (10) 2000 Robots Destroyed (50) 250 Value Destroyed (1811) 1811 Prototype IDs (6) 120 Alien Tech Used (0) 0 Bonus (1832) 1832 TOTAL SCORE: 7513 Bonus ------- Follower Combat Kills 232 Met Imprinter 300 Was Imprinted 300 Destroyed Z-Imprinter 1000 Cogmind --------- Core Integrity 0/700 Matter 91/300 Energy 30/100 System Corruption 0% Temperature Cool (23) Movement Walking (116) Location -7/Deep Caves Parts ------- > --- POWER (1) -------- (None) > --- PROPULSION (4) --- Carbon-fiber Leg Carbon-fiber Leg Zionite Composite Leg I > --- UTILITY (6) ------ High-capacity Storage Unit Advanced Targeting Computer Makeshift Hacking Suite Makeshift Hacking Suite > --- WEAPON (2) ------- Zionite Laser-S Makeshift Axe > --- INVENTORY (20) --- Carbon-fiber Leg Titanium Leg Improved Titanium Leg Experimental Sensor Array Improved Signal Interpreter Makeshift Hacking Suite Makeshift Hacking Suite Makeshift Hacking Suite System Restoration Module Hacking Drone Bay (1/1) Peak State ------------ > --- POWER ------------ Zionite Light DM Reactor > --- PROPULSION ------- Improved Carbon-fiber Leg Improved Titanium Leg Improved Titanium Leg Improved Titanium Leg > --- UTILITY ---------- High-capacity Storage Unit Advanced Targeting Computer Kinecellerator Phase Shifter Layered Medium Armor Plating Medium Reactive Plating > --- WEAPON ----------- Minigun Makeshift Axe > --- INVENTORY -------- Carbon-fiber Leg Carbon-fiber Leg Carbon-fiber Leg Carbon-fiber Leg Carbon-fiber Leg Titanium Leg Titanium Leg Improved Titanium Leg Experimental Sensor Array Improved Signal Interpreter Improved Signal Interpreter Makeshift Hacking Suite Makeshift Hacking Suite Makeshift Hacking Suite Makeshift Hacking Suite Makeshift Hacking Suite System Restoration Module Hacking Drone Bay [Rating: 60] Favorites ----------- Power Improved Deuterium Engine Engine Improved Deuterium Engine Power Core Light Nuclear Core Reactor Zionite Light DM Reactor Propulsion Improved Titanium Leg Leg Improved Titanium Leg Utility High-capacity Storage Unit Device Kinecellerator Storage High-capacity Storage Unit Processor Advanced Targeting Computer Hackware Hacking Suite Protection Improved Propulsion Shielding Weapon Gauss Rifle Energy Gun Medium Laser Energy Cannon Heavy Ion Cannon Ballistic Gun Gauss Rifle Ballistic Cannon Assault Cannon Launcher Grenade Launcher Slashing Weapon Makeshift Axe Build | -11 -10 -10 -10 -9 -8 -7 -7 -7 -7 -7 ------- Run | Yrd Mat Min Exi Min Mat Fac Low Low Zio Dee Slots Evolved 6 | . . . . . 4 2 . . . . Power . | . . . . . . . . . . . Propulsion 2 | . . . . . 1 1 . . . . Utility 4 | . . . . . 3 1 . . . . Weapon . | . . . . . . . . . . . Parts Attached 66 | 6 1 2 . 2 18 13 6 7 1 10 Power 7 | 1 . 1 . 1 1 1 1 . . 1 Engine 5 | 1 . . . 1 1 1 1 . . . Core 1 | . . 1 . . . . . . . . Reactor 1 | . . . . . . . . . . 1 Propulsion 21 | 2 . 1 . . 9 7 . . . 2 Treads . | . . . . . . . . . . . Leg 21 | 2 . 1 . . 9 7 . . . 2 Wheel . | . . . . . . . . . . . Hover . | . . . . . . . . . . . Flight . | . . . . . . . . . . . Utility 27 | 1 1 . . 1 5 5 5 4 1 4 Device 8 | . . . . 1 . 2 2 2 1 . Storage 2 | 1 . . . . 1 . . . . . Processor 4 | . 1 . . . 1 . 1 . . 1 Hackware 4 | . . . . . 1 1 . . . 2 Protection 9 | . . . . . 2 2 2 2 . 1 Artifact . | . . . . . . . . . . . Weapon 11 | 2 . . . . 3 . . 3 . 3 Energy Gun 2 | 1 . . . . . . . . . 1 Energy Cannon 1 | . . . . . . . . 1 . . Ballistic Gun 4 | 1 . . . . 2 . . 1 . . Ballistic Cannon 1 | . . . . . 1 . . . . . Launcher 2 | . . . . . . . . 1 . 1 Special Weapon . | . . . . . . . . . . . Impact Weapon . | . . . . . . . . . . . Slashing Weapon 1 | . . . . . . . . . . 1 Piercing Weapon . | . . . . . . . . . . . Special Melee Weapon . | . . . . . . . . . . . Unidentified Prototypes 6 | . . . . 1 . . 1 . 1 3 Parts Lost 30 | . . . . . 3 . 1 6 . 20 Power 3 | . . . . . . . . . . 3 Propulsion 8 | . . . . . 1 . . . . 7 Utility 12 | . . . . . 1 . 1 4 . 6 Weapon 7 | . . . . . 1 . . 2 . 4 Highest Loss Streak 14 | . . . . . 3 . 1 4 . 14 To Critical Strikes 1 | . . . . . . . . . . 1 Average Backups 15 | 3 3 5 7 7 17 19 19 17 16 18 Power 1 | 1 1 1 1 1 1 2 1 1 1 . Propulsion 7 | . . 1 2 2 10 9 8 8 8 7 Utility 4 | . . . 1 1 1 5 7 7 5 8 Weapon 2 | 1 1 3 3 3 3 2 2 1 1 1 Tool/Special . | . . . . . . . . . . . Unused Backups 23 | . . . 1 2 6 5 2 . . 7 Power 5 | . . . . 1 2 1 1 . . . Propulsion 6 | . . . . . 2 2 . . . 2 Utility 8 | . . . 1 1 . . 1 . . 5 Weapon 4 | . . . . . 2 2 . . . . Tool/Special . | . . . . . . . . . . . Average Slot Usage (%) 97 | . 89 100 100 100 92 99 99 98 100 92 Engine 7 | . 14 9 . 10 9 7 7 7 7 2 Leg 29 | . 28 28 28 28 27 29 30 30 30 29 Device 9 | . . . . 1 . 13 14 13 15 14 Storage 8 | . 14 14 14 14 9 7 7 7 7 7 Processor 7 | . 4 14 14 12 7 . 6 7 7 7 Hackware 1 | . . . . . 4 8 . . . . Protection 12 | . . . . . 16 13 15 15 15 14 Energy Gun 2 | . 14 14 14 14 2 . . . . . Ballistic Gun 9 | . 14 14 14 14 15 7 7 6 7 2 Ballistic Cannon 2 | . . . . . . 7 7 3 . . Launcher 1 | . . . . . . . . 2 6 2 Peak Build Rating 60 | 6 7 9 9 17 38 52 58 58 55 60 Average Rating 40 | 2 6 7 9 9 30 48 54 53 50 54 On Entrance 27 | . 6 7 9 9 17 35 52 58 50 55 Naked Turns . | . . . . . . . . . . . Heaviest Build 98 | 13 13 13 13 16 64 73 79 83 76 98 Greatest Support 78 | 20 20 20 20 20 51 78 78 78 78 78 Greatest Overweight (x) 2 | . . . . . 2 1 1 1 . 2 Average Overweight (x) . | . . . . . . . . . . . Largest Inventory Capacity 20 | 8 8 8 8 8 20 20 20 20 20 20 Average Capacity 17 | 5 8 8 8 8 18 20 20 20 20 20 Most Carried 20 | 5 5 8 8 8 20 20 20 20 20 20 Average Carried 15 | 3 3 5 7 7 17 19 19 17 16 18 Final Capacity 20 | 8 8 8 8 8 20 20 20 20 20 20 Final Carried 20 | 2 5 7 7 8 19 20 20 15 20 10 Class Distribution -------------------- 97% | Mutant Dominant Class ---------------- Mutant | -10/Materials Mutant | -10/Mines Mutant | -10/Exiles Mutant | -9/Mines Mutant | -8/Materials Mutant | -7/Factory Mutant | -7/Lower Caves Mutant | -7/Lower Caves Mutant | -7/Zion Mutant | -7/Deep Caves Resources | -11 -10 -10 -10 -9 -8 -7 -7 -7 -7 -7 ----------- Run | Yrd Mat Min Exi Min Mat Fac Low Low Zio Dee Matter Collected 1780 | 231 57 14 20 10 442 38 418 360 93 97 Remotely . | . . . . . . . . . . . Salvage Created 1967 | . 139 136 . . 551 130 352 548 . 111 Parts 89 | . 4 8 . . 26 10 11 21 . 9 Haulers Intercepted 1 | . . . . . . . 1 . . . Recyclers Shooed 1 | . . . . . 1 . . . . . Parts Field Recycled . | . . . . . . . . . . . Retrieved Matter . | . . . . . . . . . . . Parts Self-Destructed 30 | . . . . . . . 11 19 . . Prevented . | . . . . . . . . . . . Kills | -11 -10 -10 -10 -9 -8 -7 -7 -7 -7 -7 ------- Run | Yrd Mat Min Exi Min Mat Fac Low Low Zio Dee Combat Hostiles Destroyed 45 | . 3 5 . . 8 2 6 15 . 6 Melee 1 | . . . . . . . . . . 1 Guns 22 | . 3 5 . . 7 1 2 3 . 1 Cannons 15 | . . . . . 1 1 4 9 . . AOE 7 | . . . . . . . . 3 . 4 Classes Destroyed 14 | . 2 1 . . 4 1 2 2 . 2 Hauler 1 | . . . . . . . 1 . . . Recycler 3 | . . . . . 3 . . . . . Operator 1 | . . . . . 1 . . . . . Watcher 3 | . 1 . . . . 2 . . . . Swarmer 9 | . . 3 . . 2 . . 4 . . Grunt 20 | . 3 2 . . 2 . 5 8 . . Brawler 1 | . . . . . . . . 1 . . Duelist 2 | . . . . . . . . 2 . . Sentry 4 | . . . . . 3 1 . . . . Hunter 1 | . . . . . . . 1 . . . Programmer 1 | . . . . . . 1 . . . . Heavy 1 | . . . . . 1 . . . . . Z-Technician 4 | . . . . . . . . . . 4 Z-Light 2 | . . . . . . . . . . 2 Assembled 3 | . . . . . . . . . . 3 Best Kill Streak 5 | . 1 3 . . 3 1 5 4 . 4 Combat Bots Only 5 | . 1 3 . . 2 1 5 4 . 3 Max Kills in Single Turn 2 | . 1 1 . . 2 1 1 2 . 1 Gunslinging . | . . . . . . . . . . . Exploded 2 | . . . . . . . . 2 . 1 Melee 1 | . . . . . . . . . . 1 Uniques/NPCs Destroyed 1 | . . . . . . . . . . 1 Z-Imprinter (-7/Deep Caves) Combat | -11 -10 -10 -10 -9 -8 -7 -7 -7 -7 -7 -------- Run | Yrd Mat Min Exi Min Mat Fac Low Low Zio Dee Hostile Shots Fired 365 | . 18 23 . . 32 22 39 93 . 138 Missed 105 | . 7 8 . . 13 10 8 19 . 40 Hits 260 | . 11 15 . . 19 12 31 74 . 98 Melee 6 | . . . . . . . . 6 . . Projectile 254 | . 11 15 . . 19 12 31 68 . 98 AOE 1 | . . . . . 1 . . . . . Critical Strikes 5 | . . 1 . . 1 . 1 1 . 1 Damage Taken 5721 | . 131 150 . . 732 102 486 1263 . 2857 Core 872 | . 22 28 . . 103 25 34 44 . 616 Absorbed by Shields . | . . . . . . . . . . . Redirected to Shielding 351 | . . . . . 26 20 84 179 . 42 Core Remaining (%) 87 | 100 . . . 80 81 . . . . . Volleys Fired 165 | . 18 14 . . 36 9 20 50 . 18 Largest 2 | . 2 2 . . 2 2 2 2 . 2 Hottest 102 | . 70 70 . . 70 65 65 102 . 61 Shots Fired 306 | . 36 28 . . 72 18 40 89 . 23 Gun 213 | . 36 28 . . 62 9 20 47 . 11 Cannon 77 | . . . . . 10 9 20 38 . . Launcher 16 | . . . . . . . . 4 . 12 Special . | . . . . . . . . . . . Kinetic 245 | . 18 14 . . 69 18 40 76 . 10 Thermal 45 | . 18 14 . . 3 . . 9 . 1 Explosive 16 | . . . . . . . . 4 . 12 Electromagnetic . | . . . . . . . . . . . Robot Hit Streak 15 | . 10 6 . . 6 6 10 15 . 12 Robot Miss Streak 5 | . 2 3 . . 5 3 2 3 . 2 Penetration Max 1 | . . . . . 1 . 1 . . . Secondary Targets 1 | . . . . . 1 . . . . . Max Gunslinging Chain 1 | . . . . . 1 . . . . . Shots Hit Robots 203 | . 28 17 . . 37 9 28 61 . 23 Core Hits 108 | . 9 8 . . 16 5 14 31 . 25 Critical Kills . | . . . . . . . . . . . Critical Parts Destroyed 1 | . . . . . . . . 1 . . Critical Strikes 5 | . . . . . . 1 2 2 . . Destroy 1 | . . . . . . . . 1 . . Blast 4 | . . . . . . 1 2 1 . . Melee Attacks 7 | . . . . . . . . . . 7 Impact . | . . . . . . . . . . . Slashing 7 | . . . . . . . . . . 7 Piercing . | . . . . . . . . . . . Sneak Attacks 4 | . . . . . . . . . . 4 Combat Hostiles . | . . . . . . . . . . . Follow-up Attacks . | . . . . . . . . . . . Damage Inflicted 5234 | . 303 192 . . 806 235 736 1597 . 1365 Guns 2359 | . 303 192 . . 637 97 392 623 . 115 Cannons 1429 | . . . . . 169 138 344 778 . . Explosions 1036 | . . . . . . . . 196 . 840 Melee 410 | . . . . . . . . . . 410 Ramming . | . . . . . . . . . . . Kinetic 3209 | . 105 61 . . 779 235 736 1178 . 115 Thermal 579 | . 198 131 . . 27 . . 223 . . Explosive 1036 | . . . . . . . . 196 . 840 Electromagnetic . | . . . . . . . . . . . Impact . | . . . . . . . . . . . Slashing 410 | . . . . . . . . . . 410 Piercing . | . . . . . . . . . . . Highest Corruption . | . . . . . . . . . . . Average Corruption . | . . . . . . . . . . . Corruption Purged . | . . . . . . . . . . . Corruption Blocked . | . . . . . . . . . . . Overload Shots . | . . . . . . . . . . . Overflow Damage 119 | . . . . . . . 16 . . 103 Projectiles 16 | . . . . . . . 16 . . . Explosions 1 | . . . . . . . . . . 1 Melee 102 | . . . . . . . . . . 102 Knockbacks 9 | . . . . . . . 2 7 . . Impact . | . . . . . . . . . . . Kinetic 8 | . . . . . . . 2 6 . . Secondary 1 | . . . . . . . . 1 . . Self-Inflicted Damage . | . . . . . . . . . . . Shots . | . . . . . . . . . . . Rammed . | . . . . . . . . . . . Targets Rammed . | . . . . . . . . . . . Kicked . | . . . . . . . . . . . Crushed . | . . . . . . . . . . . Highest Temperature 346 | . 108 150 . . 30 66 252 308 . 346 Average Temperature 47 | . 40 62 . . 7 27 97 99 . 26 Received Heat Transfer 1785 | . 72 63 . . 81 30 225 477 . 837 Effects 5 | . . . . . . . 2 . . 3 Energy Bleed 2 | . . . . . . . 2 . . . Interference 3 | . . . . . . . . . . 3 Siege Activations . | . . . . . . . . . . . Martial Activations . | . . . . . . . . . . . Shielding Activations . | . . . . . . . . . . . Robots Disrupted . | . . . . . . . . . . . Combat Hostiles . | . . . . . . . . . . . Robots Corrupted . | . . . . . . . . . . . Combat Hostiles . | . . . . . . . . . . . Parts Fried . | . . . . . . . . . . . Impact Corruptions . | . . . . . . . . . . . Robots Melted . | . . . . . . . . . . . Combat Hostiles . | . . . . . . . . . . . Parts Melted 1 | . 1 . . . . . . . . . Heat Transferred 1295 | . 555 370 . . 74 . . 296 . . Parts Sabotaged . | . . . . . . . . . . . Parts Stolen . | . . . . . . . . . . . Parts Stripped . | . . . . . . . . . . . Power Chain Reactions . | . . . . . . . . . . . Alert | -11 -10 -10 -10 -9 -8 -7 -7 -7 -7 -7 ------- Run | Yrd Mat Min Exi Min Mat Fac Low Low Zio Dee Maximum Alert Level . | . . . . . . . . . . . Low Security (%) 100 | 100 100 100 . 100 100 100 . . . . Level 1 . | . . . . . . . . . . . Level 2 . | . . . . . . . . . . . Level 3 . | . . . . . . . . . . . Level 4 . | . . . . . . . . . . . Level 5 . | . . . . . . . . . . . High Security . | . . . . . . . . . . . Max Security . | . . . . . . . . . . . Peak Influence 144 | . 55 60 . 23 144 42 . . . . Initial 20 | . . . . . . 20 . . . . Average 25 | . 19 17 . 1 47 8 . . . . Influence Increases 1549 | . 138 135 . 23 587 161 135 370 . . Destroy 0b10 Robot/C 1020 | . 60 100 . 20 380 40 120 300 . . Destroy 0b10 Robot/NC 45 | . 5 . . . 25 10 5 . . . Destroy Leader 218 | . 22 20 . . 102 24 10 40 . . Allied During Kill 54 | . . . . 3 51 . . . . . Successful Hack 65 | . 6 . . . 12 47 . . . . Disable Machine 30 | . . . . . . 30 . . . . Destroy Structure 12 | . . . . . 2 10 . . . . Lose Combat Pursuer 105 | . 45 15 . . 15 . . 30 . . Influence Decreases 1549 | . 138 135 . 23 542 205 136 370 . . Entered New Map 26 | . . . . . . 25 1 . . . Time Decay 1431 | . 138 135 . 23 504 180 125 326 . . Lost Part 54 | . . . . . . . 10 44 . . Lost Ally 38 | . . . . . 38 . . . . . Squads Dispatched 8 | . 2 . . . 4 2 . . . . Investigation 2 | . 1 . . . 1 . . . . . Extermination 2 | . . . . . . 2 . . . . Reinforcement 4 | . 1 . . . 3 . . . . . Assault . | . . . . . . . . . . . Garrison . | . . . . . . . . . . . Intercept . | . . . . . . . . . . . Searches Triggered . | . . . . . . . . . . . Construction Impeded . | . . . . . . . . . . . Haulers Reinforced . | . . . . . . . . . . . Active Scanning Responses . | . . . . . . . . . . . Cargo Convoy Interrupts . | . . . . . . . . . . . Stealth | -11 -10 -10 -10 -9 -8 -7 -7 -7 -7 -7 --------- Run | Yrd Mat Min Exi Min Mat Fac Low Low Zio Dee Distress Signals 2 | . . . . . 2 . . . . . Communications Jammed . | . . . . . . . . . . . Distress Signals . | . . . . . . . . . . . Times Spotted 78 | . 9 6 . 1 24 5 6 16 . 11 Peak Tracking Total 5 | . 3 3 . 1 4 1 5 5 . 5 Tactical Retreats 6 | . 2 1 . . 1 . . 2 . . Traps | -11 -10 -10 -10 -9 -8 -7 -7 -7 -7 -7 ------- Run | Yrd Mat Min Exi Min Mat Fac Low Low Zio Dee Traps Triggered 1 | . . . . . . 1 . . . . Indirectly . | . . . . . . . . . . . Trap Hack Attempts . | . . . . . . . . . . . Triggered . | . . . . . . . . . . . Disarmed . | . . . . . . . . . . . Reprogrammed . | . . . . . . . . . . . Reused . | . . . . . . . . . . . Traps Extracted . | . . . . . . . . . . . Installed . | . . . . . . . . . . . Triggered . | . . . . . . . . . . . Machines | -11 -10 -10 -10 -9 -8 -7 -7 -7 -7 -7 ---------- Run | Yrd Mat Min Exi Min Mat Fac Low Low Zio Dee Machines Disabled 3 | . . . . . . 2 . . . 1 Max in Single Turn 2 | . . . . . . 2 . . . 1 Garrison Access 1 | . . . . . 1 . . . . . Machines Repaired . | . . . . . . . . . . . Machines Dismantled . | . . . . . . . . . . . Machines Sabotaged . | . . . . . . . . . . . Overloaded Fab Kills . | . . . . . . . . . . . Hacking | -11 -10 -10 -10 -9 -8 -7 -7 -7 -7 -7 --------- Run | Yrd Mat Min Exi Min Mat Fac Low Low Zio Dee Machines Accessed 14 | . 2 . 1 . 6 4 1 . . . Terminals 8 | . 2 . . . 3 3 . . . . Fabricators 1 | . . . . . . 1 . . . . Repair Stations . | . . . . . . . . . . . Recycling Units 1 | . . . . . 1 . . . . . Scanalyzers 1 | . . . . . 1 . . . . . Garrison Access 1 | . . . . . 1 . . . . . Total Hacks 39 | . 10 . 3 . 15 10 1 . . . Successful 21 | . 4 . 3 . 7 6 1 . . . Failed 18 | . 6 . . . 8 4 . . . . Catastrophic 4 | . 1 . . . 1 2 . . . . Database Lockouts . | . . . . . . . . . . . Manual 27 | . 11 . . . 4 4 . . 8 . Terminals 27 | . 10 . . . 8 9 . . . . Fabricators 1 | . . . . . . 1 . . . . Repair Stations . | . . . . . . . . . . . Recycling Units 2 | . . . . . 2 . . . . . Scanalyzers 3 | . . . . . 3 . . . . . Garrison Access 2 | . . . . . 2 . . . . . Terminal Hacks 14 | . 3 . 3 . 2 5 1 . . . Record 3 | . . . 3 . . . . . . . Robot Analysis 4 | . 3 . . . . 1 . . . . Open Door 1 | . . . . . . . 1 . . . Branch Access Points 1 | . . . . . . 1 . . . . Locate Traps 1 | . . . . . . 1 . . . . Security Status 1 | . . . . . . 1 . . . . Registered Components 2 | . . . . . 1 1 . . . . Zone Layout 1 | . . . . . 1 . . . . . Fabricator Hacks 1 | . . . . . . 1 . . . . Network Status 1 | . . . . . . 1 . . . . Repair Station Hacks . | . . . . . . . . . . . Recycling Unit Hacks 2 | . . . . . 2 . . . . . Report Inventory 1 | . . . . . 1 . . . . . Retrieve Components 1 | . . . . . 1 . . . . . Scanalyzer 2 | . . . . . 2 . . . . . Insert Component 1 | . . . . . 1 . . . . . Analyze 1 | . . . . . 1 . . . . . Garrison Access Hacks 1 | . . . . . 1 . . . . . Seal Access 1 | . . . . . 1 . . . . . Unauthorized Hacks 1 | . 1 . . . . . . . . . Terminals 1 | . 1 . . . . . . . . . Operators 1 | . 1 . . . . . . . . . Fabricators . | . . . . . . . . . . . Repair Stations . | . . . . . . . . . . . Recycling Units . | . . . . . . . . . . . Scanalyzers . | . . . . . . . . . . . Garrison Access . | . . . . . . . . . . . Data Cores Recovered . | . . . . . . . . . . . Used . | . . . . . . . . . . . Hacking Detections 10 | . 1 . . . 6 3 . . . . Full Trace Events 2 | . 1 . . . 1 . . . . . Feedback Events . | . . . . . . . . . . . Feedback Blocked . | . . . . . . . . . . . Robot Schematics Acquired . | . . . . . . . . . . . Robots Built . | . . . . . . . . . . . Authchips . | . . . . . . . . . . . Time . | . . . . . . . . . . . Total Robot Build Rating . | . . . . . . . . . . . Part Schematics Acquired . | . . . . . . . . . . . Parts Built . | . . . . . . . . . . . Authchips . | . . . . . . . . . . . Time . | . . . . . . . . . . . Total Part Build Rating . | . . . . . . . . . . . Parts Repaired . | . . . . . . . . . . . Time . | . . . . . . . . . . . Parts Recycled . | . . . . . . . . . . . Recycled Matter . | . . . . . . . . . . . Retrieved Matter . | . . . . . . . . . . . Retrieved Components 10 | . . . . . 10 . . . . . Parts Scanalyzed 1 | . . . . . 1 . . . . . Part Schematics Acquired . | . . . . . . . . . . . Parts Damaged . | . . . . . . . . . . . Bothacking | -11 -10 -10 -10 -9 -8 -7 -7 -7 -7 -7 ------------ Run | Yrd Mat Min Exi Min Mat Fac Low Low Zio Dee Used RIF Installer . | . . . . . . . . . . . Robots Hacked . | . . . . . . . . . . . Non-combat . | . . . . . . . . . . . Combat . | . . . . . . . . . . . Robot Hacks Applied . | . . . . . . . . . . . Relay Couplers Released . | . . . . . . . . . . . Fabnet Peak Effective % . | . . . . . . . . . . . Robots Rewired . | . . . . . . . . . . . Allies Hacked . | . . . . . . . . . . . Hacks Repelled . | . . . . . . . . . . . Allies | -11 -10 -10 -10 -9 -8 -7 -7 -7 -7 -7 -------- Run | Yrd Mat Min Exi Min Mat Fac Low Low Zio Dee Total Allies 7 | . . . . 3 . . . . 4 . Largest Group 4 | . . . . 3 3 . . . 4 . Highest-Rated Group 149 | . . . . 40 40 . . . 149 . Highest-Rated Ally 39 | . . . . 16 16 . . . 39 . Total Orders . | . . . . . . . . . . . Ally Attacks 68 | . . . . 2 65 . . . . 1 Total Damage 584 | . . . . 30 554 . . . . . Kills 13 | . . . . 1 12 . . . . . Allies Corrupted . | . . . . . . . . . . . Allies Melted . | . . . . . . . . . . . Intel | -11 -10 -10 -10 -9 -8 -7 -7 -7 -7 -7 ------- Run | Yrd Mat Min Exi Min Mat Fac Low Low Zio Dee Active Infowar (turns) 2426 | . . . . 26 1283 139 330 648 . . Sensors 44 | . . . . 26 18 . . . . . Terrain 978 | . . . . . . . 330 648 . . Machine Analysis 1404 | . . . . . 1265 139 . . . . Robot Analysis Total 4 | . 3 . . . . 1 . . . . Derelict Logs Recovered 5 | . . 2 . 1 . . 1 1 . . Drone Launches . | . . . . . . . . . . . Drone Recoveries . | . . . . . . . . . . . Exploration | -11 -10 -10 -10 -9 -8 -7 -7 -7 -7 -7 ------------- Run | Yrd Mat Min Exi Min Mat Fac Low Low Zio Dee Turns Passed 8485 | 36 419 453 217 399 1445 1000 1072 1237 1447 760 Spaces Moved 5155 | 42 278 316 180 322 670 545 682 700 1032 388 Core 39 | 39 . . . . . . . . . . Treads . | . . . . . . . . . . . Legs 5116 | 3 278 316 180 322 670 545 682 700 1032 388 Wheels . | . . . . . . . . . . . Hover . | . . . . . . . . . . . Flight . | . . . . . . . . . . . Fastest Speed 50 | 50 120 120 120 120 120 127 127 127 127 116 Average Speed 146 | 55 120 120 120 120 189 170 144 149 127 169 Slowest Speed 270 | 120 120 120 120 120 260 200 197 197 127 270 Overloaded Moves . | . . . . . . . . . . . Propulsion Burnouts . | . . . . . . . . . . . Robots Hopped . | . . . . . . . . . . . Potential Cave-ins . | . . . . . . . . . . . Cave-ins Triggered . | . . . . . . . . . . . Exploration Rate (%) 55 | 4 48 67 53 69 56 18 78 83 91 44 Regions Visited 10 Branch Regions 7 Pre-discovered Areas 5 | . . 1 1 1 . . . . 2 . Known Exits Taken 1 | . . . . . . 1 . . . . Unknown Exits Taken 9 | 1 1 1 1 1 1 . 1 1 1 . Scrap Searched 16 | . . 1 . 2 . . 9 1 3 . Spaces Dug . | . . . . . . . . . . . Terrain Destroyed 123 | . . . . . 5 14 2 24 . 78 Melee . | . . . . . . . . . . . Projectile 15 | . . . . . 5 1 2 6 . 1 AOE 108 | . . . . . . 13 . 18 . 77 Terrain Rammed . | . . . . . . . . . . . Walls Destroyed . | . . . . . . . . . . . Machines Disabled . | . . . . . . . . . . . Actions | -11 -10 -10 -10 -9 -8 -7 -7 -7 -7 -7 --------- Run | Yrd Mat Min Exi Min Mat Fac Low Low Zio Dee Total 5826 | 55 331 364 181 338 783 606 736 807 1167 458 Wait 313 | . 31 28 . 6 21 13 18 49 128 19 Move 5145 | 41 277 315 179 321 669 544 681 699 1031 388 Hop . | . . . . . . . . . . . Pick Up 69 | 8 4 3 1 3 23 11 4 1 5 6 Fast Attach 13 | . . 1 . 3 2 3 4 . . . Attach 40 | 6 1 . . . 7 3 1 6 . 16 Detach 1 | . . . . . 1 . . . . . Swap 30 | . . 1 . . 10 9 1 2 3 4 Drop 43 | . . 2 1 5 14 14 7 . . . Fire 165 | . 18 14 . . 36 9 20 50 . 18 Melee 7 | . . . . . . . . . . 7 Ram . | . . . . . . . . . . . Kick . | . . . . . . . . . . . Crush . | . . . . . . . . . . . Escape Stasis . | . . . . . . . . . . . Rewire . | . . . . . . . . . . . Trap . | . . . . . . . . . . . Miscellaneous . | . . . . . . . . . . . Route ------- -11/Scrapyard -10/Materials (discovered 2 exits: [*Mat] / [*Min]) -10/Mines (discovered 2 exits: [*Mat] / *Exi) -10/Exiles -9/Mines (discovered 2 exits: *Mat x2) -8/Materials (discovered 2 exits: *Fac x2) -7/Factory (discovered 2 exits: *Low x2) -7/Lower Caves -7/Lower Caves (discovered 2 exits: [*Fac] / *Zio) -7/Zion (discovered 2 exits: [*Dee] / [*Pro]) -7/Deep Caves History --------- Turn | Location | Event 5 | -11/Scrapyard | Discovered new exit (range 16) 37 | -11/Scrapyard | Entered Materials 258 | -10/Materials | Discovered new exit (range 7) 304 | -10/Materials | Build established: Mutant 387 | -10/Materials | Discovered new exit (range 4) 456 | -10/Materials | Entered Mines 466 | -10/Mines | Met a Derelict bent on vengeance 497 | -10/Mines | Learned 2 Materials zone layouts 552 | -10/Mines | Learned location of Storage (-9) 554 | -10/Mines | Discovered new exit (range 13) 614 | -10/Mines | Learned Materials emergency access door positions 858 | -10/Mines | Deemed a non-threat by the Exiles lab entrance 858 | -10/Mines | Discovered new exit (range 5) 883 | -10/Mines | Assembled infested the area 909 | -10/Mines | Entered Exiles 938 | -10/Exiles | Met 8R-AWN 959 | -10/Exiles | Met EX-HEX 1002 | -10/Exiles | Met EX-BIN 1031 | -10/Exiles | Learned location of Zion (-7) 1111 | -10/Exiles | Discovered new exit (range 14) 1126 | -10/Exiles | Entered Mines 1129 | -9/Mines | Assisted by bots powering up and referring to "LRC-V3" 1190 | -9/Mines | Joined a pair of Derelicts in attacking an 0b10 outpost 1272 | -9/Mines | Discovered new exit (range 5) 1487 | -9/Mines | Discovered new exit (range 13) 1491 | -9/Mines | Found a damaged Exp. Sensor Array with a note attached 1494 | -9/Mines | Found Prototype Device 1494 | -9/Mines | Identified Exp. Sensor Array 1525 | -9/Mines | Entered Materials 1525 | -8/Materials | Accompanied by 3 allies 1525 | -8/Materials | Evolved 4 slots: Propulsion x1, Utility x3 2254 | -8/Materials | Discovered new exit (range 4) 2895 | -8/Materials | Discovered new exit (range 3) 2942 | -8/Materials | Lost 3 parts (1n1u1w) 2970 | -8/Materials | Entered Factory 2970 | -7/Factory | Evolved 2 slots: Propulsion x1, Utility x1 3023 | -7/Factory | Discovered new exit (range 9) 3131 | -7/Factory | Identified exit to Lower Caves 3970 | -7/Factory | Entered Lower Caves 4183 | -7/Lower Caves | Learned Factory terminal intel 4445 | -7/Lower Caves | Discovered new exit (range 8) 4666 | -7/Lower Caves | Found Imp. Powered Armor 5042 | -7/Lower Caves | Entered another Lower Caves area 5080 | -7/Lower Caves | Discovered new exit (range 10) 5755 | -7/Lower Caves | Lost 4 parts (3u1w) 5897 | -7/Lower Caves | Discovered new exit (range 11) 6048 | -7/Lower Caves | Learned 4 Factory zone layouts 6279 | -7/Lower Caves | Entered Zion 6393 | -7/Zion | Discovered new exit (range 16) 6527 | -7/Zion | Received a visual enhancement algorithm 6530 | -7/Zion | Ran a visual enhancement algorithm 6841 | -7/Zion | Acquired unknown access codes intercepted by a Zionite 6924 | -7/Zion | Met Imprinter 6946 | -7/Zion | Imprinted 6949 | -7/Zion | Declared Zion's savior 7101 | -7/Zion | Opened final containment barrier to the Deep Caves 7121 | -7/Zion | Discovered new exit (range 3) 7121 | -7/Zion | Saw the warning signs outside the Deep Caves entrance 7261 | -7/Zion | Given the Hacking Drone Bay 7261 | -7/Zion | Found Prototype Device 7262 | -7/Zion | Identified Hacking Drone Bay 7323 | -7/Zion | Given A8's code to call for help 7529 | -7/Zion | Learned location of Armory (-4) 7574 | -7/Zion | Learned location of Warlord (-4) 7726 | -7/Zion | Entered Deep Caves 7726 | -7/Deep Caves | Accompanied by 4 allies 7969 | -7/Deep Caves | Attacked by Z-Imprinter 8008 | -7/Deep Caves | Destroyed Z-Imprinter 8028 | -7/Deep Caves | Lost 5 parts (1p1u3w) 8435 | -7/Deep Caves | Z-Facility disabled 8459 | -7/Deep Caves | Core integrity fell below 50% 8475 | -7/Deep Caves | Core integrity fell below 20% 8486 | -7/Deep Caves | Destroyed by KQ-YQJ(z) with Zionite Laser-S Last Messages --------------- 08450_ Imp. Titanium Leg destroyed. 08452_ Minigun destroyed. 08456_ Imp. Carbon-fiber Leg destroyed. 08458_ Lyr. Medium Armor Plating destroyed. 08459_ Overheating: System interference. 08459_ Mak. Axe temporarily disabled. 08459_ Adv. Targeting Computer temporarily disabled. 08459_ Mak. Axe temporarily disabled. 08462_ Carbon-fiber Leg destroyed. 08466_ Kinecellerator destroyed. 08466_ Imp. Titanium Leg destroyed. 08467_ Zio. Light DM Reactor destroyed. 08468_ Carbon-fiber Leg destroyed. 08470_ Imp. Titanium Leg destroyed. 08471_ Titanium Leg destroyed. 08472_ Imp. Signal Interpreter destroyed. 08477_ Acquired Prototype Leg. 08478_ Identified Zio. Composite Leg I. 08482_ Acquired Prototype Energy Gun. 08483_ Identified Zio. Laser-S. Map ----- +----------------------------------------------------+ | | | | | | | | | | | | | | | | | | | | | | | | | | | | | | | | | | | | | | | | | | | | | | | ???????????????????????##;#??????????????????????? | | ???????????????????????# #????###"###########???? | | ???????????????????????# @#?#### ##??? | | ???????????????????????# z### #??? | | ??????????????????????#;z;## #### | | ??????????????## ??#;#z#; ## | | ?????????????# ##z | | ???????????? z | | ???????????? | | ???????????? | | ??????????? | | ???????????? """ """"" | | ???????????? """"""""""""" | | ??????????? """""""""""""" | | ???????????? """""""""""""" | | ???????????? """"""""""" | | ????????????? """""""""""""" | | ????????????? "????""""""""" | | ??????????????? "???"""""""""" | | ????????????????? "???"""""""""" | | ?????????????????? "???""""" " " | | ???????????????????? ????"""""" = = | | ?????????????????????? ????""""" | | ?????????????????????????? ?????"""""" | | ????????????????????????????????""""""= | | ????????????????????????????????"""""""" = | | ????????????????????????????????"""""""""" * | +----------------------------------------------------+ Best States ------------- Heat Dissipation 34 Energy Generation 27 Energy Capacity 290 Matter Stores 300 Matter Capacity 300 Sight Range 16 Robot Scan Range 20 Terrain Scan Range 24 Terrain Scan Density 10 Armor Coverage 625 Resistance: KI 30 Power Shielding 66 Propulsion Shielding 66 Weapon Cycling 15 Phase Shifting 5 Evasion (%) 60 Targeting Accuracy 8 Kinecelleration 30 Offensive Hacking 22 Item Schematics ----------------- None Robot Schematics ------------------ None Fabricated ------------ Nothing Repaired ---------- Nothing Alien Tech Used ----------------- None Achievements -------------- Are We The Baddies? Challenges ------------ None Game ------ Seed MetafieldRapidPurifier Manual? 0 Play Time 00:52:45 Cumulative 147.3 hours Start 2025.05.24 @ 21:14:37 End 2025.05.24 @ 22:21:30 Sessions 1 Manual Loads 0 Difficulty Rogue Special Mode None Game No. 211 Rogue 208 Adventurer 3 Explorer 0 Win Type - Total 1 Types 1/0/0/0/0/0/0/0/0/0 Lore% 34 Gallery% 54 Achievement% 44 Wizard Run 0 Options --------- Layout 0 ASCII 0 Keyboard 0 Movement Mouse Keybinds 0 Fullscreen 2 Font 18/SmallcapsGlow Map View 76x50 Zoom Use 0% Tactical HUD 1 Map Filters NONE Filters NONE Steam 1 RUN: f3d6ce11-5cf0-4ff0-b766-19b3edf23a7e